bitfinex/quotes_BTCUSD_20240905
["timestamp","ask_amount","ask_price","bid_price","bid_amount"]
[1725535662407,0.20265175,56851.0,56850.0,0.0028]
[1725535662850,0.02675375,56851.0,56850.0,0.0028]
[1725535663791,0.019,56851.0,56850.0,0.0028]
[1725535668775,0.194898,56851.0,56850.0,0.0028]
[1725535669192,0.29099995,56851.0,56850.0,0.0028]
[1725535669435,0.11510195,56851.0,56850.0,0.0028]
[1725535669636,0.194898,56851.0,56850.0,0.0028]
[1725535671718,0.28954868,56851.0,56850.0,0.0028]
[1725535671924,0.28954868,56851.0,56850.0,0.00443]
[1725535672879,0.11365068,56851.0,56850.0,0.532133]
[1725535673111,0.019,56851.0,56850.0,0.532133]
[1725535673329,0.019,56851.0,56850.0,0.00443]
[1725535673566,0.019,56851.0,56850.0,0.180331]
[1725535674520,0.019,56851.0,56850.0,0.00443]
[1725535674759,0.008,56851.0,56850.0,0.00343]
[1725535675275,0.175896,56852.0,56851.0,0.0008]
[1725535676314,0.44788195,56854.0,56851.0,0.0008]
[1725535676315,0.175892,56853.0,56851.0,0.0008]
[1725535676960,0.175889,56854.0,56851.0,0.0008]
[1725535677229,0.007,56852.0,56851.0,0.177697]
[1725535677429,0.007,56852.0,56851.0,0.0008]
[1725535677846,0.015,56852.0,56851.0,0.0028]
[1725535678057,0.008,56852.0,56851.0,0.0018]
[1725535678484,0.008,56852.0,56851.0,0.0028]
[1725535678714,0.008,56852.0,56851.0,0.178698]
[1725535680262,0.008,56852.0,56851.0,0.177698]
[1725535680493,0.008,56852.0,56851.0,0.529494]
[1725535680775,0.015,56852.0,56851.0,1.51148795]
[1725535680977,0.015,56852.0,56851.0,1.68779891]
[1725535681213,0.015,56852.0,56851.0,2.04159491]
[1725535681434,0.015,56852.0,56851.0,1.94349296]
[1725535681646,0.015,56852.0,56851.0,2.04159491]
[1725535681863,0.000815,56857.0,56856.0,1.241977]
[1725535682093,0.000815,56857.0,56856.0,1.50627895]
[1725535684707,0.000815,56857.0,56856.0,1.51027895]
[1725535686238,0.000815,56857.0,56856.0,1.414177]
[1725535686882,0.527506,56872.0,56856.0,1.414177]
[1725535686883,0.37193995,56871.0,56869.0,0.0008]
[1725535687097,0.175842,56869.0,56865.0,0.176653]
[1725535687318,0.09610195,56869.0,56867.0,0.175847]
[1725535687540,0.1,56871.0,56868.0,0.175844]
[1725535687975,0.175837,56871.0,56868.0,0.175844]
[1725535688239,0.175837,56871.0,56870.0,0.0008]
[1725535688456,0.186837,56871.0,56870.0,0.0008]
[1725535688669,0.286837,56871.0,56870.0,0.0008]
[1725535688906,0.275837,56871.0,56870.0,0.0008]
[1725535689108,0.292837,56871.0,56870.0,0.0008]
[1725535689331,0.117,56871.0,56870.0,0.0008]
[1725535690006,0.117,56871.0,56870.0,0.176639]
[1725535690218,0.017,56871.0,56870.0,0.176639]
[1725535690430,0.011,56871.0,56870.0,0.0008]
[1725535690638,0.12628395,56873.0,56871.0,0.0008]
[1725535690847,0.30211395,56873.0,56871.0,0.0008]
[1725535691058,0.2223859,56873.0,56870.0,0.001]
[1725535691265,0.18370095,56872.0,56870.0,0.002]
[1725535691470,0.106,56871.0,56870.0,0.001]
[1725535691679,0.114,56871.0,56870.0,0.001]
[1725535691891,0.39385235,56871.0,56870.0,0.001]
[1725535692098,0.21801635,56871.0,56870.0,0.001]
[1725535692308,0.20401635,56871.0,56867.0,0.176648]
[1725535692717,0.20401635,56871.0,56870.0,0.001]
[1725535693315,0.37985235,56871.0,56870.0,0.001]
[1725535693520,0.73152535,56871.0,56870.0,0.002]
[1725535693726,0.37985235,56871.0,56870.0,0.002]
[1725535693950,0.175841,56870.0,56865.0,0.176652]
[1725535694338,0.00790754,56869.0,56865.0,0.176652]
[1725535694540,0.00790754,56869.0,56867.0,0.0008]
[1725535695582,0.01390754,56869.0,56867.0,0.0008]
[1725535697496,0.01390754,56869.0,56867.0,0.0018]
[1725535697707,0.01990754,56869.0,56867.0,0.0028]
[1725535698301,0.02072254,56869.0,56867.0,0.0028]
[1725535698976,0.02072254,56869.0,56867.0,0.178648]
[1725535699444,0.02072254,56869.0,56867.0,0.0028]
[1725535700791,0.02072254,56869.0,56868.0,1.04752895]
[1725535701008,0.02072254,56869.0,56868.0,1.50231995]
[1725535701212,0.012815,56869.0,56868.0,1.50231995]
[1725535701428,0.012815,56869.0,56868.0,1.50311995]
[1725535701633,0.012815,56869.0,56868.0,1.51311995]
[1725535701843,0.006815,56869.0,56868.0,1.51311995]
[1725535702058,0.006815,56869.0,56868.0,1.68963091]
[1725535702263,0.006815,56869.0,56868.0,1.69063091]
[1725535702464,0.012815,56869.0,56868.0,2.04232191]
[1725535703316,0.006815,56869.0,56868.0,2.04332191]
[1725535703529,0.006815,56869.0,56868.0,2.04132191]
[1725535703741,0.001815,56869.0,56868.0,2.04632191]
[1725535704161,0.001815,56869.0,56868.0,2.05232191]
[1725535710458,0.001815,56869.0,56868.0,1.69983091]
[1725535710664,0.001815,56869.0,56868.0,1.077327]
[1725535712027,0.001815,56869.0,56868.0,0.725636]
[1725535712241,0.001815,56869.0,56868.0,0.198645]
[1725535712449,0.001815,56869.0,56868.0,0.208645]
[1725535712656,0.0097741,56869.0,56868.0,0.208645]
[1725535712865,0.001815,56869.0,56868.0,0.208645]
[1725535713041,0.0097741,56869.0,56868.0,0.208645]
[1725535713273,0.001815,56869.0,56868.0,0.208645]
[1725535713477,0.00978785,56869.0,56868.0,0.208645]
[1725535713735,0.001815,56869.0,56868.0,0.208645]
[1725535713941,0.00978785,56869.0,56868.0,0.208645]
[1725535714148,0.001815,56869.0,56868.0,0.208645]
[1725535714564,0.001815,56869.0,56868.0,0.560336]
[1725535714775,0.00981362,56869.0,56868.0,0.987527]
[1725535714985,0.001815,56869.0,56868.0,0.987527]
[1725535717213,0.093,56883.0,56877.0,0.0008]
[1725535717424,0.175815,56878.0,56877.0,0.0008]
[1725535717841,0.18383418,56878.0,56877.0,0.0008]
[1725535718579,0.18783418,56878.0,56877.0,0.0008]
[1725535718989,0.19183418,56878.0,56877.0,0.0008]
[1725535720073,0.01601918,56878.0,56877.0,0.0008]
[1725535720500,0.01601918,56878.0,56875.0,0.0108]
[1725535720706,0.19183418,56878.0,56875.0,0.0108]
[1725535721375,0.18783418,56878.0,56875.0,0.0108]
[1725535722181,0.19183418,56878.0,56875.0,0.0108]
[1725535723878,0.01601918,56878.0,56877.0,0.0008]
[1725535724305,0.01683418,56878.0,56877.0,0.0008]
[1725535724973,0.01683418,56878.0,56877.0,0.176617]
[1725535724974,0.01283418,56878.0,56877.0,0.176617]
[1725535725133,0.01283418,56878.0,56877.0,0.889887]
[1725535725340,0.01683418,56878.0,56877.0,0.889887]
[1725535725545,0.01683418,56878.0,56877.0,0.899887]
[1725535725546,0.008815,56878.0,56877.0,0.899887]
[1725535726948,0.008815,56878.0,56877.0,1.417322]
[1725535729243,0.008815,56878.0,56877.0,1.065687]
[1725535734730,0.000815,56878.0,56877.0,1.065687]
[1725535735203,0.002815,56878.0,56877.0,1.065687]
[1725535735868,0.002815,56878.0,56877.0,1.067687]
[1725535736081,0.44749862,56886.0,56883.0,0.0008]
[1725535736294,0.175797,56884.0,56882.0,0.0008]
[1725535736973,0.175793,56885.0,56882.0,0.0008]
[1725535737839,0.005,56884.0,56882.0,0.0008]
[1725535738290,0.175793,56885.0,56882.0,0.0008]
[1725535738518,0.181793,56885.0,56882.0,0.0018]
[1725535738738,0.175793,56885.0,56883.0,0.001]
[1725535739477,0.175811,56879.0,56878.0,0.02]
[1725535739728,0.175808,56880.0,56878.0,0.02]
[1725535740594,0.09591462,56881.0,56879.0,0.0008]
[1725535740804,0.175806,56881.0,56879.0,0.0008]
[1725535741215,0.175806,56881.0,56880.0,0.0008]
[1725535742259,0.176806,56881.0,56880.0,0.0008]
[1725535742684,0.178806,56881.0,56880.0,0.0008]
[1725535742917,0.003,56881.0,56880.0,0.176608]
[1725535743118,0.003,56881.0,56880.0,0.700925]
[1725535743785,0.003,56881.0,56880.0,1.052542]
[1725535743999,0.002,56881.0,56880.0,1.052542]
[1725535744251,0.002,56881.0,56880.0,1.414159]
[1725535744252,0.003,56881.0,56880.0,1.414159]
[1725535744677,0.001,56881.0,56880.0,1.414159]
[1725535744885,0.001,56881.0,56880.0,1.416159]
[1725535745110,0.001,56881.0,56880.0,1.418159]
[1725535745321,0.175776,56891.0,56890.0,0.0722]
[1725535745561,0.175774,56891.0,56890.0,0.0722]
[1725535746400,0.0037213,56892.0,56891.0,0.0008]
[1725535747513,0.1794923,56892.0,56891.0,0.0008]
[1725535747715,0.0037213,56892.0,56891.0,0.0008]
[1725535748557,0.0147213,56892.0,56891.0,0.0028]
[1725535748966,0.0147213,56892.0,56891.0,0.0018]
[1725535749182,0.0077213,56892.0,56891.0,0.0008]
[1725535749631,0.0137213,56892.0,56891.0,0.0008]
[1725535749847,0.0137213,56892.0,56891.0,0.528123]
[1725535750085,0.0137213,56892.0,56891.0,0.889672]
[1725535750296,0.0177213,56892.0,56891.0,0.889672]
[1725535750507,0.0097213,56892.0,56891.0,0.889672]
[1725535750941,0.0137213,56892.0,56891.0,0.889672]
[1725535751147,0.0077213,56892.0,56891.0,0.889672]
[1725535751349,0.0137213,56892.0,56891.0,0.889672]
[1725535752062,0.0137213,56892.0,56891.0,0.538123]
[1725535752475,0.0077213,56892.0,56891.0,0.538123]
[1725535753758,0.0077213,56892.0,56891.0,0.185774]
[1725535753976,0.0077213,56892.0,56890.0,0.257177]
[1725535754194,0.0077213,56892.0,56890.0,0.247177]
[1725535754418,0.3572643,56892.0,56888.0,0.075]
[1725535754664,0.3572643,56892.0,56888.0,0.0758]
[1725535754665,0.175777,56891.0,56888.0,0.0758]
[1725535755152,0.175778,56890.0,56888.0,0.075]
[1725535756022,0.175779,56890.0,56888.0,0.075]
[1725535756667,0.17578,56889.0,56888.0,0.075]
[1725535757807,0.17578,56889.0,56888.0,0.077]
[1725535758256,0.17578,56889.0,56888.0,0.075]
[1725535758513,0.17578,56889.0,56888.0,0.079]
[1725535760308,0.17578,56889.0,56888.0,0.0798]
[1725535760530,0.3552663,56892.0,56888.0,0.0798]
[1725535760972,0.17578,56889.0,56888.0,0.079]
[1725535761170,0.175777,56890.0,56888.0,0.079]
[1725535761620,0.17578,56889.0,56888.0,0.077]
[1725535761838,0.17578,56889.0,56888.0,0.075]
[1725535761839,0.527341,56889.0,56888.0,0.075]
[1725535762341,0.18363051,56889.0,56888.0,0.075]
[1725535763303,0.18363051,56889.0,56888.0,0.0758]
[1725535763625,0.18363051,56889.0,56888.0,0.0768]
[1725535764009,0.18363051,56889.0,56888.0,0.0758]
[1725535764504,0.18363051,56889.0,56888.0,0.0788]
[1725535764828,0.18363051,56889.0,56888.0,0.0778]
[1725535765035,0.18363051,56889.0,56888.0,0.0798]
[1725535765241,0.00785051,56889.0,56888.0,0.0798]
[1725535765647,0.175777,56890.0,56888.0,0.0798]
[1725535765845,0.00783841,56889.0,56888.0,0.0798]
[1725535766655,0.00783841,56889.0,56888.0,0.1647]
[1725535766859,0.175778,56890.0,56889.0,0.0742]
[1725535767061,0.175775,56891.0,56889.0,0.0742]
[1725535767232,0.175775,56891.0,56890.0,0.075]
[1725535767894,0.527324,56891.0,56890.0,0.075]
[1725535768503,0.175775,56891.0,56890.0,0.075]
[1725535769472,0.175775,56891.0,56890.0,0.0742]
[1725535769682,0.878873,56891.0,56890.0,0.0742]
[1725535769882,0.527324,56891.0,56890.0,0.0742]
[1725535771102,0.175775,56891.0,56890.0,0.0742]
[1725535774175,0.527324,56891.0,56890.0,0.0742]
[1725535774809,0.528139,56891.0,56890.0,0.0742]
[1725535775867,0.62402102,56891.0,56890.0,0.0742]
[1725535776097,0.72335911,56891.0,56890.0,0.0742]
[1725535776581,0.62747709,56891.0,56890.0,0.0742]
[1725535776798,0.528139,56891.0,56890.0,0.0742]
[1725535777470,0.62746205,56891.0,56890.0,0.0742]
[1725535777728,0.528139,56891.0,56890.0,0.0742]
[1725535778158,0.000815,56891.0,56890.0,0.963887]
[1725535778361,0.000815,56891.0,56890.0,0.270777]
[1725535779187,0.000815,56891.0,56890.0,0.622332]
[1725535780776,0.000815,56891.0,56890.0,0.973887]
[1725535780981,0.000815,56891.0,56890.0,0.622332]
[1725535781850,0.000815,56891.0,56890.0,0.973887]
[1725535782058,0.000815,56891.0,56890.0,0.622332]
[1725535783165,0.000815,56891.0,56890.0,0.707032]
[1725535783839,0.000815,56891.0,56890.0,1.058587]
[1725535784454,0.000815,56891.0,56890.0,0.707032]
[1725535784669,0.000815,56891.0,56890.0,1.058587]
[1725535789012,0.000815,56891.0,56890.0,0.707032]
[1725535789229,0.000815,56891.0,56890.0,1.058587]
[1725535790583,0.000815,56891.0,56890.0,1.410142]
[1725535792565,0.000815,56891.0,56890.0,1.50602402]
[1725535793062,0.000815,56891.0,56890.0,1.68153498]
[1725535793274,0.001815,56891.0,56890.0,1.68753498]
[1725535793693,0.000815,56891.0,56890.0,1.68753498]
[1725535794113,0.001815,56891.0,56890.0,1.69053498]
[1725535794332,0.001815,56891.0,56890.0,1.70053498]
[1725535796827,0.001815,56891.0,56890.0,1.60465296]
[1725535797030,0.001815,56891.0,56890.0,1.077587]
[1725535802231,0.001815,56891.0,56890.0,0.726032]
[1725535802476,0.001815,56891.0,56890.0,0.641332]
[1725535803196,0.177589,56891.0,56890.0,0.019]
[1725535803406,0.27347102,56891.0,56890.0,0.019]
[1725535803608,0.62502002,56891.0,56890.0,0.019]
[1725535803835,0.62502002,56891.0,56890.0,0.0906]
[1725535803836,0.001815,56891.0,56890.0,0.0906]
[1725535804040,0.000815,56891.0,56890.0,0.0816]
[1725535804272,0.000815,56891.0,56890.0,0.598932]
[1725535804496,0.000815,56891.0,56889.0,0.02243]
[1725535804711,0.000815,56891.0,56890.0,0.004]
[1725535805138,0.176589,56891.0,56890.0,0.004]
[1725535805369,0.175777,56890.0,56889.0,0.00163]
[1725535805614,0.62321402,56890.0,56889.0,0.00163]
[1725535805847,0.72275207,56890.0,56889.0,0.00163]
[1725535806530,1.60257303,56890.0,56889.0,0.00663]
[1725535806744,1.82067303,56890.0,56889.0,0.00663]
[1725535806952,2.17222803,56890.0,56889.0,0.01063]
[1725535807169,2.17222803,56890.0,56889.0,0.00663]
[1725535807376,2.17222803,56890.0,56889.0,0.00163]
[1725535807580,2.17822803,56890.0,56889.0,0.00263]
[1725535807810,2.17102803,56890.0,56889.0,0.00163]
[1725535808025,2.31500776,56890.0,56889.0,0.00163]
[1725535808221,2.32220776,56890.0,56889.0,0.00263]
[1725535808441,2.31620776,56890.0,56889.0,0.00163]
[1725535808637,2.45686724,56890.0,56889.0,0.00263]
[1725535809046,2.47286382,56890.0,56889.0,0.00363]
[1725535809290,2.46386382,56890.0,56889.0,0.00263]
[1725535809498,2.33220776,56890.0,56889.0,0.00263]
[1725535809716,2.34120776,56890.0,56889.0,0.00363]
[1725535810143,2.32620776,56890.0,56889.0,0.00163]
[1725535810365,2.32620776,56890.0,56889.0,0.00263]
[1725535810593,2.44547927,56890.0,56889.0,0.00363]
[1725535810827,2.44547927,56890.0,56889.0,0.00263]
[1725535811053,2.45047927,56890.0,56889.0,0.00363]
[1725535811263,2.47686382,56890.0,56889.0,0.00363]
[1725535811449,2.34520776,56890.0,56889.0,0.00363]
[1725535811693,2.47566382,56890.0,56889.0,0.00363]
[1725535811919,2.34400776,56890.0,56889.0,0.00363]
[1725535812620,2.44922991,56890.0,56889.0,0.00363]
[1725535812834,2.34400776,56890.0,56889.0,0.00363]
[1725535813044,2.42292864,56890.0,56889.0,0.00363]
[1725535813782,2.42412864,56890.0,56889.0,0.00363]
[1725535814541,2.34520776,56890.0,56889.0,0.00363]
[1725535817150,2.39780754,56890.0,56889.0,0.00363]
[1725535817368,2.40485454,56890.0,56889.0,0.00363]
[1725535817819,1.95699954,56890.0,56889.0,0.00363]
[1725535818101,0.22558505,56890.0,56889.0,0.00363]
[1725535818390,0.22558505,56890.0,56889.0,1.066832]
[1725535818391,0.019,56890.0,56889.0,1.066832]
[1725535818643,0.019,56890.0,56889.0,0.715271]
[1725535819374,0.351521,56896.0,56889.0,0.715271]
[1725535819375,0.02562225,56903.0,56891.0,0.175774]
[1725535819904,0.175762,56895.0,56891.0,0.01]
[1725535820397,0.175758,56897.0,56891.0,0.185773]
[1725535820959,0.175758,56897.0,56891.0,0.195773]
[1725535821172,0.3515,56899.0,56891.0,0.371547]
[1725535821423,0.3515,56899.0,56891.0,0.547318]
[1725535821424,0.001,56895.0,56891.0,0.547318]
[1725535821659,0.3515,56899.0,56894.0,0.175764]
[1725535821660,0.175751,56899.0,56894.0,0.175764]
[1725535821949,0.431915,56905.0,56894.0,0.175764]
[1725535821950,0.003,56897.0,56896.0,0.246058]
[1725535822269,0.176551,56902.0,56896.0,0.246058]
[1725535822462,0.00081,56902.0,56898.0,0.175752]
[1725535822697,0.00081,56902.0,56898.0,0.176552]
[1725535823120,0.176551,56902.0,56898.0,0.0008]
[1725535823338,0.175744,56901.0,56896.0,0.0811]
[1725535823603,0.175744,56901.0,56896.0,0.266859]
[1725535824709,0.175751,56899.0,56896.0,0.0703]
[1725535824949,0.59135475,56901.0,56896.0,0.0803]
[1725535825156,0.176557,56900.0,56896.0,0.0803]
[1725535825364,0.176557,56900.0,56896.0,0.0911]
[1725535825570,0.176557,56900.0,56897.0,0.0008]
[1725535826497,0.176557,56900.0,56896.0,0.266059]
[1725535827508,0.00081,56900.0,56899.0,0.0008]
[1725535827723,0.00081,56900.0,56899.0,0.1616]
[1725535828441,0.00081,56900.0,56899.0,0.69885]
[1725535829213,0.00081,56900.0,56899.0,1.05035]
[1725535829488,0.00853937,56900.0,56899.0,1.05035]
[1725535829737,0.00081,56900.0,56899.0,1.05035]
[1725535830204,0.00081,56900.0,56899.0,0.69885]
[1725535830971,0.00081,56900.0,56899.0,1.06035]
[1725535831229,0.00081,56900.0,56899.0,1.41185]
[1725535831720,0.00081,56900.0,56899.0,1.06035]
[1725535832688,0.00081,56900.0,56899.0,0.35735]
[1725535832910,0.00081,56900.0,56899.0,0.1608]
[1725535833139,0.00853937,56900.0,56899.0,0.33655]
[1725535833364,0.00081,56900.0,56899.0,0.1608]
[1725535833612,0.00862229,56900.0,56899.0,0.1608]
[1725535833841,0.00862229,56900.0,56899.0,0.1616]
[1725535836894,0.00862229,56900.0,56899.0,0.33735]
[1725535837153,0.00862229,56900.0,56899.0,0.1616]
[1725535837412,0.00862229,56900.0,56899.0,0.1608]
[1725535837413,0.18436829,56900.0,56899.0,0.1608]
[1725535837653,0.00862229,56900.0,56899.0,0.1608]
[1725535838132,0.00862229,56900.0,56899.0,0.33655]
[1725535838568,0.00862229,56900.0,56899.0,0.35655]
[1725535838831,0.00862229,56900.0,56899.0,1.06035]
[1725535838832,0.00081,56900.0,56899.0,1.06035]
[1725535842013,0.00081,56900.0,56899.0,1.41185]
[1725535844767,0.00081,56900.0,56899.0,0.69885]
[1725535845009,0.00081,56900.0,56899.0,0.35735]
[1725535845448,0.00081,56900.0,56899.0,0.70885]
[1725535846111,0.00861983,56900.0,56899.0,0.70885]
[1725535846336,0.00081,56900.0,56899.0,0.70885]
[1725535846569,0.00861971,56900.0,56899.0,0.70885]
[1725535846784,0.00081,56900.0,56899.0,0.70885]
[1725535847215,0.00861889,56900.0,56899.0,0.70885]
[1725535847674,0.00861889,56900.0,56899.0,1.06035]
[1725535848118,0.00081,56900.0,56899.0,1.06035]
[1725535849001,0.00081,56900.0,56899.0,1.41185]
[1725535850513,0.00081,56900.0,56899.0,0.1808]
[1725535850739,0.00081,56900.0,56899.0,0.35655]
[1725535850959,0.00862074,56900.0,56899.0,0.35655]
[1725535851203,0.00081,56900.0,56899.0,0.35655]
[1725535851645,0.00862908,56900.0,56899.0,0.61975]
[1725535852737,0.00862908,56900.0,56899.0,0.0725]
[1725535852941,0.00862908,56900.0,56896.0,0.084528]
[1725535852942,0.175756,56897.0,56896.0,0.084528]
[1725535853163,0.24849083,56900.0,56896.0,0.084528]
[1725535853164,0.175751,56899.0,56896.0,0.084528]
[1725535853376,0.00782466,56897.0,56896.0,0.094528]
[1725535854104,0.175752,56899.0,56896.0,0.270287]
[1725535854324,0.00782466,56897.0,56896.0,0.273287]
[1725535854545,0.09931298,56898.0,56896.0,0.274287]
[1725535854762,0.00782466,56897.0,56896.0,0.274287]
[1725535854972,0.00782466,56897.0,56896.0,0.271287]
[1725535855158,0.176558,56900.0,56896.0,0.270287]
[1725535855375,0.00782466,56897.0,56896.0,0.271287]
[1725535855630,0.176558,56900.0,56896.0,0.271287]
[1725535855631,0.176558,56900.0,56896.0,0.274287]
[1725535855861,0.00782466,56897.0,56896.0,0.273287]
[1725535856073,0.176558,56900.0,56896.0,0.273287]
[1725535856307,0.00782466,56897.0,56896.0,0.274087]
[1725535856522,0.176558,56900.0,56899.0,0.0008]
[1725535856523,0.00081,56900.0,56899.0,0.0008]
[1725535857835,0.351474,56904.0,56899.0,0.0008]
[1725535858072,0.18357297,56900.0,56899.0,0.0008]
[1725535858499,0.00782697,56900.0,56899.0,0.0008]
[1725535859191,0.175743,56902.0,56899.0,0.0008]
[1725535859413,0.00780352,56900.0,56899.0,0.0008]
[1725535859610,0.175741,56902.0,56899.0,0.0008]
[1725535859864,0.00783064,56900.0,56899.0,0.0008]
[1725535860085,0.175741,56902.0,56899.0,0.0008]
[1725535860277,0.00783079,56900.0,56899.0,0.0008]
[1725535860498,0.175741,56902.0,56898.0,0.175751]
[1725535860754,0.00783079,56900.0,56896.0,0.074528]
[1725535860967,0.175751,56899.0,56896.0,0.074528]
[1725535861183,0.18357836,56899.0,56896.0,0.074528]
[1725535861616,0.18357736,56899.0,56896.0,0.074528]
[1725535861853,0.175753,56898.0,56896.0,0.001628]
[1725535862074,0.18357694,56898.0,56896.0,0.001628]
[1725535862303,0.18357694,56898.0,56896.0,0.002628]
[1725535862304,0.00782394,56898.0,56896.0,0.002628]
[1725535862551,0.00782394,56898.0,56897.0,0.0008]
[1725535862762,0.000814,56900.0,56896.0,0.003628]
[1725535862763,0.000814,56900.0,56898.0,0.0008]
[1725535863017,0.000814,56900.0,56899.0,0.34685]
[1725535863678,0.000814,56900.0,56899.0,0.69835]
[1725535864125,0.000814,56900.0,56899.0,1.05985]
[1725535865027,0.000814,56900.0,56899.0,1.07065]
[1725535865257,0.000814,56900.0,56899.0,1.42215]
[1725535868411,0.000814,56900.0,56899.0,1.94916096]
[1725535868627,0.000814,56900.0,56899.0,1.95716096]
[1725535868849,0.500814,56900.0,56899.0,1.96516096]
[1725535869074,0.50860005,56900.0,56899.0,1.96516096]
[1725535869281,0.50860005,56900.0,56899.0,1.97416096]
[1725535869507,0.50860005,56900.0,56899.0,1.95716096]
[1725535869728,0.50860005,56900.0,56899.0,2.05741896]
[1725535870153,0.50860005,56900.0,56899.0,2.04941896]
[1725535870582,0.50860005,56900.0,56899.0,2.05741896]
[1725535871027,0.50860005,56900.0,56899.0,2.06141896]
[1725535871259,0.50860005,56900.0,56899.0,1.534408]
[1725535871476,0.500814,56900.0,56899.0,1.545408]
[1725535871919,0.50864311,56900.0,56899.0,1.545408]
[1725535873252,0.50864311,56900.0,56899.0,1.72091896]
[1725535873889,0.500814,56900.0,56899.0,1.72091896]
[1725535878251,0.500814,56900.0,56899.0,2.07241896]
[1725535885317,0.500814,56900.0,56899.0,2.07404896]
[1725535891514,0.500814,56900.0,56899.0,2.45098838]
[1725535891723,0.500814,56900.0,56899.0,2.42798838]
[1725535892154,0.500814,56900.0,56899.0,2.45598838]
[1725535892405,0.500814,56900.0,56899.0,2.54198838]
[1725535892651,0.500814,56900.0,56899.0,2.52798838]
[1725535893089,0.500814,56900.0,56899.0,2.54198838]
[1725535893525,0.500814,56900.0,56899.0,2.55198838]
[1725535893977,0.500814,56900.0,56899.0,2.56848461]
[1725535894406,0.325069,56900.0,56899.0,2.93598461]
[1725535894622,0.325069,56900.0,56899.0,2.92198461]
[1725535894846,0.325069,56900.0,56899.0,2.90798461]
[1725535894847,0.072924,56900.0,56899.0,2.90798461]
[1725535895081,0.072924,56900.0,56899.0,2.94198461]
[1725535895324,0.072924,56900.0,56899.0,2.92798461]
[1725535895554,0.072924,56900.0,56899.0,3.04397171]
[1725535895768,0.00081,56908.0,56907.0,1.965775]
[1725535895988,0.00081,56908.0,56907.0,2.55694394]
[1725535896224,0.00081,56908.0,56907.0,2.65694394]
[1725535896704,0.00081,56908.0,56907.0,2.64044771]
[1725535896918,0.00081,56926.0,56911.0,0.002]
[1725535897136,0.00081,56926.0,56925.0,1.240486]
[1725535897612,0.00081,56926.0,56925.0,1.250486]
[1725535898309,0.00081,56926.0,56925.0,1.82975871]
[1725535898561,0.00081,56926.0,56925.0,2.18109771]
[1725535898846,0.00081,56926.0,56925.0,2.17609771]
[1725535899090,0.00081,56926.0,56925.0,2.18809771]
[1725535899321,0.00081,56926.0,56925.0,2.18209771]
[1725535899547,0.00081,56926.0,56925.0,2.17609771]
[1725535899772,0.00081,56926.0,56925.0,2.19009771]
[1725535900697,0.00081,56926.0,56925.0,1.83875871]
[1725535900918,0.00081,56926.0,56925.0,1.85275871]
[1725535904160,0.00081,56926.0,56925.0,2.20409771]
[1725535905416,0.00081,56926.0,56925.0,1.85275871]
[1725535906037,0.00081,56926.0,56925.0,2.20409771]
[1725535906243,0.00081,56926.0,56925.0,1.85275871]
[1725535907847,0.00081,56926.0,56925.0,2.20409771]
[1725535908089,0.00081,56926.0,56925.0,1.85275871]
[1725535910594,0.351207,56947.0,56942.0,0.0008]
[1725535910809,0.175613,56944.0,56941.0,0.0108]
[1725535911032,0.175617,56942.0,56941.0,0.01]
[1725535911272,0.175629,56938.0,56937.0,0.01]
[1725535911492,0.175629,56938.0,56931.0,0.0008]
[1725535911493,0.351277,56935.0,56931.0,0.0008]
[1725535911781,0.351277,56935.0,56917.0,0.351388]
[1725535911782,0.526962,56930.0,56929.0,0.01]
[1725535912000,0.17566,56928.0,56927.0,0.01]
[1725535912445,0.175663,56927.0,56926.0,0.02]
[1725535912682,0.00869334,56928.0,56926.0,0.01]
[1725535912904,0.59116975,56930.0,56927.0,0.01]
[1725535913137,0.59116975,56930.0,56924.0,0.175671]
[1725535913138,0.59118875,56927.0,56924.0,0.01]
[1725535913355,0.175669,56925.0,56924.0,0.01]
[1725535914266,0.43262675,56927.0,56924.0,0.01]
[1725535914482,0.192766,56927.0,56924.0,0.01]
[1725535915123,0.175666,56926.0,56924.0,0.01]
[1725535916250,0.175663,56927.0,56924.0,0.01]
[1725535916473,0.59117575,56930.0,56924.0,0.185672]
[1725535916703,0.175663,56928.0,56924.0,0.185672]
[1725535917578,0.175663,56928.0,56924.0,0.195672]
[1725535917791,0.001,56926.0,56924.0,0.195672]
[1725535918297,0.175663,56928.0,56925.0,0.175669]
[1725535918517,0.176663,56928.0,56925.0,0.175669]
[1725535918684,0.176663,56928.0,56927.0,0.0008]
[1725535918899,0.175663,56928.0,56927.0,0.0008]
[1725535919459,0.175657,56929.0,56926.0,0.0008]
[1725535920772,0.175662,56928.0,56924.0,0.195672]
[1725535920990,0.176662,56928.0,56924.0,0.195672]
[1725535921215,0.176662,56928.0,56925.0,0.175669]
[1725535921429,0.000815,56926.0,56925.0,0.175669]
[1725535922575,0.000815,56926.0,56925.0,0.176469]
[1725535922991,0.000815,56926.0,56924.0,0.02]
[1725535923455,0.000815,56926.0,56925.0,0.175669]
[1725535923686,0.000815,56926.0,56925.0,0.527008]
[1725535923896,0.000815,56926.0,56925.0,0.175669]
[1725535924108,0.000815,56926.0,56925.0,0.176469]
[1725535924313,0.001815,56926.0,56925.0,0.176469]
[1725535924528,0.001815,56926.0,56925.0,0.889147]
[1725535924752,0.001815,56926.0,56925.0,0.976347]
[1725535924980,0.001815,56926.0,56925.0,1.396086]
[1725535925200,0.001815,56926.0,56925.0,1.406086]
[1725535925631,0.000815,56926.0,56925.0,1.406086]
[1725535926130,0.000815,56926.0,56925.0,1.58159696]
[1725535926131,0.001815,56926.0,56925.0,1.58159696]
[1725535926363,0.001815,56926.0,56925.0,1.93293596]
[1725535926791,0.001815,56926.0,56925.0,1.93893596]